Cogmind - Beta 15 @@@ ROGUE MODE // 2025.09.23 @ 17:17:24 Player: TinyBoulder Result: Self-destructed Performance ------------- Evolutions (6) 3000 Regions Visited (8) 1600 Robots Destroyed (61) 305 Value Destroyed (2292) 2292 Prototype IDs (17) 340 Alien Tech Used (0) 0 Bonus (858) 858 TOTAL SCORE: 8395 Bonus ------- High Alert Combat Kills 51 Follower Combat Kills 7 Registered with UFD 300 Met Optimus in HQ 500 Cogmind --------- Core Integrity 1150/1150 Matter 0/300 Energy 400/400 System Corruption 2% Temperature Cool (0) Movement Rolling (153) Ox4 Location -4/Factory Parts ------- > --- POWER (2) -------- Enhanced Fission Core Micro Fission Core > --- PROPULSION (5) --- Wheel Compact Wheel Compact Wheel > --- UTILITY (10) ----- Humpback Advanced Weight Redist. System (fused) Structural Scanner Advanced Visual Processing Unit Sensor Array Experimental Signal Interpreter Advanced Targeting Computer Improved Powered Armor Improved Powered Armor > --- WEAPON (2) ------- Hardcell Cannon > --- INVENTORY (35) --- Heavy Siege Treads Medium Storage Unit Advanced Terrain Scanner Advanced Terrain Scanner Targeting Computer Improved Weapon Cycler Transmission Jammer Makeshift Light Armor Plating Improved Powered Armor Improved Powered Armor Improved Powered Armor Improved Powered Armor Improved Powered Armor Improved Powered Armor Thermal Shield A0-MCA's Component Scanner Gauss Cannon Heavy Flak Cannon Enhanced Gauss Cannon Hypervelocity Gauss Cannon Subdweller Shrapnel Launcher Improved Datajack CPS Tube (2) Junk Cannon (10) Mace Great Maul Vortex Trap Signal Generator Peak State ------------ > --- POWER ------------ Enhanced Fission Core Micro Fission Core > --- PROPULSION ------- Wheel Compact Wheel Compact Wheel > --- UTILITY ---------- Humpback Advanced Weight Redist. System Structural Scanner Advanced Visual Processing Unit Sensor Array Experimental Signal Interpreter Advanced Targeting Computer Improved Powered Armor Improved Powered Armor > --- WEAPON ----------- Junk Cannon > --- INVENTORY -------- Medium Storage Unit Advanced Terrain Scanner Advanced Terrain Scanner Targeting Computer Improved Weapon Cycler Transmission Jammer Makeshift Light Armor Plating Improved Powered Armor Improved Powered Armor Improved Powered Armor Improved Powered Armor Improved Powered Armor Improved Powered Armor Thermal Shield A0-MCA's Component Scanner Gauss Cannon Heavy Flak Cannon Enhanced Gauss Cannon Hypervelocity Gauss Cannon Hardcell Cannon Subdweller Shrapnel Launcher Improved Datajack CPS Tube Mace Great Maul Vortex Trap Signal Generator [Rating: 73] Favorites ----------- Power Light Fission Core Engine Light Ion Engine Power Core Light Fission Core Propulsion Compact Wheel Treads Light Treads Leg Aluminum Leg Wheel Compact Wheel Utility Humpback Device Advanced Weight Redist. System Storage Humpback Processor Experimental Signal Interpreter Hackware Improved Hacking Suite Protection Makeshift Light Armor Plating Weapon Battle Cannon Energy Gun Medium Laser Energy Cannon Subdweller Beam Cannon Ballistic Gun Light Assault Rifle Ballistic Cannon Battle Cannon Launcher Subdweller Shrapnel Launcher Special Weapon Junk Cannon Impact Weapon Great Maul Special Melee Weapon Improved Datajack Build | -11 -10 -10 -10 -7 -5 -5 -5 -4 ------- Run | Yrd Mat Min Sub Scr Fac Upp Upp Fac Slots Evolved 12 | . . . . . 10 . . 2 Power 1 | . . . . . 1 . . . Propulsion 3 | . . . . . 2 . . 1 Utility 8 | . . . . . 7 . . 1 Weapon . | . . . . . . . . . Parts Attached 57 | 5 5 7 8 6 23 . . 3 Power 8 | . 1 1 1 1 4 . . . Engine 4 | . 1 1 1 . 1 . . . Core 4 | . . . . 1 3 . . . Reactor . | . . . . . . . . . Propulsion 14 | 2 . 3 3 1 5 . . . Treads 2 | 2 . . . . . . . . Leg 1 | . . 1 . . . . . . Wheel 11 | . . 2 3 1 5 . . . Hover . | . . . . . . . . . Flight . | . . . . . . . . . Utility 19 | 1 3 1 1 2 9 . . 2 Device 4 | . 1 . 1 1 1 . . . Storage 4 | 1 2 . . 1 . . . . Processor 4 | . . 1 . . 3 . . . Hackware 1 | . . . . . 1 . . . Protection 6 | . . . . . 4 . . 2 Artifact . | . . . . . . . . . Weapon 16 | 2 1 2 3 2 5 . . 1 Energy Gun 1 | 1 . . . . . . . . Energy Cannon 1 | . . . 1 . . . . . Ballistic Gun 4 | 1 . 2 1 . . . . . Ballistic Cannon 4 | . . . 1 . 2 . . 1 Launcher 1 | . . . . . 1 . . . Special Weapon 3 | . 1 . . 1 1 . . . Impact Weapon 1 | . . . . . 1 . . . Slashing Weapon . | . . . . . . . . . Piercing Weapon . | . . . . . . . . . Special Melee Weapon 1 | . . . . 1 . . . . Unidentified Prototypes 2 | . . . . 1 1 . . . Parts Lost 12 | . . 4 . . 7 . . 1 Power 3 | . . 1 . . 2 . . . Propulsion 4 | . . 1 . . 2 . . 1 Utility 3 | . . . . . 3 . . . Weapon 2 | . . 2 . . . . . . Highest Loss Streak 4 | . . 2 . . 4 . . 1 To Critical Strikes . | . . . . . . . . . Average Backups 20 | 2 7 11 17 27 19 17 18 20 Power 2 | . 2 1 3 5 1 . . . Propulsion 1 | 1 4 5 4 1 . . . . Utility 9 | . . 2 5 11 11 8 9 10 Weapon 5 | . . 1 4 6 4 7 7 7 Tool/Special . | . . . . . . . . . Unused Backups 45 | . . . 6 15 5 . . 19 Power 8 | . . . 1 7 . . . . Propulsion 5 | . . . 3 1 . . . 1 Utility 23 | . . . 1 3 5 . . 14 Weapon 8 | . . . 1 4 . . . 3 Tool/Special 1 | . . . . . . . . 1 Average Slot Usage (%) 82 | . 78 98 100 80 75 88 92 84 Engine 3 | . 2 14 14 3 . . . . Core 8 | . . . . 10 10 11 11 10 Treads 1 | . 28 6 . . . . . . Wheel 21 | . . 21 28 28 15 23 23 18 Device 6 | . 3 10 4 1 12 11 11 15 Storage 10 | . 14 14 14 14 5 5 5 5 Processor 6 | . . 3 9 . 10 17 17 15 Protection 3 | . . . . . 9 11 11 10 Energy Cannon 1 | . . . 8 2 . . . . Ballistic Gun 3 | . 13 24 8 . . . . . Ballistic Cannon 4 | . . . 10 8 1 . . 1 Special Weapon 3 | . . . . 5 3 . . . Special Melee Weapon 2 | . . . . 6 . . . . Peak Build Rating 73 | 5 10 10 14 34 68 57 59 73 Average Rating 35 | 4 6 9 12 25 58 55 58 64 On Entrance 27 | . 5 10 9 14 34 55 57 59 Naked Turns . | . . . . . . . . . Heaviest Build 259 | 8 49 49 55 221 259 231 239 258 Greatest Support 67 | 40 40 40 40 40 67 67 67 67 Greatest Overweight (x) 10 | 1 1 2 1 6 10 3 3 5 Average Overweight (x) 3 | . . 1 1 4 5 3 3 3 Largest Inventory Capacity 35 | 8 20 20 20 35 35 35 35 35 Average Capacity 30 | 7 18 20 20 33 35 35 35 35 Most Carried 35 | 6 11 15 20 35 33 22 22 30 Average Carried 24 | 2 7 12 18 30 26 20 21 23 Final Capacity 35 | 8 20 20 20 35 35 35 35 35 Final Carried 33 | 6 11 15 20 33 19 22 21 30 Class Distribution -------------------- 45% | Hauler-Mutant 22% | Mutant 17% | Hauler-Assassin 11% | Hauler-Skirmisher 3% | Scavenger-Mutant Dominant Class ---------------- Mutant | -10/Materials Mutant | -10/Mines Mutant | -10/Subcaves Hauler-Mutant | -7/Scraptown Hauler-Skirmisher | -5/Factory Hauler-Assassin | -5/Upper Caves Hauler-Assassin | -5/Upper Caves Hauler-Assassin | -4/Factory Resources | -11 -10 -10 -10 -7 -5 -5 -5 -4 ----------- Run | Yrd Mat Min Sub Scr Fac Upp Upp Fac Matter Collected 1305 | 229 41 142 174 118 452 87 5 57 Remotely . | . . . . . . . . . Salvage Created 2164 | . 105 302 248 . 1324 . 44 141 Parts 111 | . 6 19 18 . 48 . 7 13 Haulers Intercepted . | . . . . . . . . . Recyclers Shooed 1 | . . . . . 1 . . . Parts Field Recycled . | . . . . . . . . . Retrieved Matter . | . . . . . . . . . Parts Self-Destructed 19 | . . . 12 . . 2 5 . Prevented . | . . . . . . . . . Kills | -11 -10 -10 -10 -7 -5 -5 -5 -4 ------- Run | Yrd Mat Min Sub Scr Fac Upp Upp Fac Combat Hostiles Destroyed 49 | . 2 10 5 . 17 . 4 11 Guns 14 | . 2 10 2 . . . . . Cannons 13 | . . . 3 . 10 . . . AOE 18 | . . . . . 4 . 4 10 Classes Destroyed 11 | . 1 2 2 . 6 . . . Worker 4 | . . . . . 4 . . . Builder 2 | . . . . . 2 . . . Recycler 4 | . . . . . 4 . . . Mechanic 1 | . . 1 . . . . . . Operator 1 | . . . . . 1 . . . Swarmer 20 | . . 6 . . . . 4 10 Grunt 8 | . 2 4 . . 2 . . . Brawler 1 | . . . . . 1 . . . Sentry 3 | . . . 1 . 1 . . 1 Programmer 13 | . . . . . 13 . . . Subdweller 4 | . . . 4 . . . . . Best Kill Streak 11 | . 1 4 2 . 11 . 4 5 Combat Bots Only 5 | . 1 3 2 . 5 . 4 5 Max Kills in Single Turn 4 | . 1 1 1 . 2 . 2 4 Gunslinging . | . . . . . . . . . Exploded 4 | . . . . . 2 . 2 4 Melee . | . . . . . . . . . Uniques/NPCs Destroyed . | . . . . . . . . . Combat | -11 -10 -10 -10 -7 -5 -5 -5 -4 -------- Run | Yrd Mat Min Sub Scr Fac Upp Upp Fac Hostile Shots Fired 230 | . 16 71 17 . 108 . 1 17 Missed 70 | . 4 16 9 . 33 . 1 7 Hits 160 | . 12 55 8 . 75 . . 10 Melee 4 | . . . . . 4 . . . Projectile 156 | . 12 55 8 . 71 . . 10 Critical Strikes 12 | . 1 2 . . 9 . . . Part Disruptions 1 | . . . . . 1 . . . Damage Taken 2791 | . 182 613 225 . 1590 . . 181 Core 402 | . 22 118 94 . 168 . . . Absorbed by Shields . | . . . . . . . . . Core Remaining (%) 63 | 100 . . . 6 . . 83 . Volleys Fired 173 | . 9 51 36 . 60 . 2 15 Largest 2 | . 2 2 2 . 1 . 1 1 Hottest 113 | . 100 70 113 . 47 . 40 55 Shots Fired 233 | . 17 68 71 . 60 . 2 15 Gun 132 | . 16 68 48 . . . . . Cannon 33 | . . . 23 . 7 . . 3 Launcher 11 | . . . . . 3 . 2 6 Special 57 | . 1 . . . 50 . . 6 Kinetic 157 | . 8 65 63 . 10 . 2 9 Thermal 20 | . 9 3 8 . . . . . Explosive . | . . . . . . . . . Electromagnetic . | . . . . . . . . . Impact 54 | . . . . . 48 . . 6 Robot Hit Streak 25 | . 8 10 16 . 25 . . 13 Robot Miss Streak 4 | . 1 4 2 . 2 . . . Penetration Max . | . . . . . . . . . Secondary Targets . | . . . . . . . . . Shots Hit Robots 172 | . 13 46 57 . 49 . . 7 Core Hits 78 | . 5 20 15 . 18 . 5 15 Critical Kills 2 | . . . . . 2 . . . Critical Parts Destroyed 9 | . . 1 . . 6 . . 2 Critical Strikes 13 | . . 1 1 . 8 . . 3 Destroy 2 | . . 1 1 . . . . . Blast 1 | . . . . . . . . 1 Smash 10 | . . . . . 8 . . 2 Melee Attacks 14 | . . . . . 12 . . 2 Impact 14 | . . . . . 12 . . 2 Slashing . | . . . . . . . . . Piercing . | . . . . . . . . . Sneak Attacks 3 | . . . . . 3 . . . Combat Hostiles . | . . . . . . . . . Follow-up Attacks . | . . . . . . . . . Damage Inflicted 7172 | . 136 402 864 . 4376 . 197 1197 Guns 1047 | . 136 402 509 . . . . . Cannons 604 | . . . 355 . 215 . . 34 Explosions 1931 | . . . . . 948 . 197 786 Melee 253 | . . . . . 253 . . . Ramming . | . . . . . . . . . Kinetic 2871 | . 60 390 675 . 945 . 197 604 Thermal 711 | . 76 12 189 . 218 . . 216 Explosive . | . . . . . . . . . Electromagnetic . | . . . . . . . . . Impact 3590 | . . . . . 3213 . . 377 Slashing . | . . . . . . . . . Piercing . | . . . . . . . . . Highest Corruption 21 | . . . . . 21 21 21 2 Average Corruption 9 | . . . . . 8 21 21 2 Corruption Purged . | . . . . . . . . . Corruption Blocked . | . . . . . . . . . Effects 51 | . . . . . 28 13 2 8 Message Errors 7 | . . . . . 4 1 . 2 Matter Fused 17 | . . . . . 8 6 1 2 Heat Flow Errors 6 | . . . . . 3 2 . 1 Energy Discharges 6 | . . . . . 3 2 . 1 Parts Rejected 1 | . . . . . 1 . . . Parts Fused 1 | . . . . . 1 . . . Data Loss (minor) 9 | . . . . . 6 1 . 2 Data Loss (major) 4 | . . . . . 2 1 1 . Overload Shots . | . . . . . . . . . Overflow Damage 1961 | . . . . . 1641 . . 320 Projectiles 1479 | . . . . . 1347 . . 132 Explosions 314 | . . . . . 126 . . 188 Melee 168 | . . . . . 168 . . . Knockbacks 17 | . . . . . 16 . . 1 Impact 15 | . . . . . 15 . . . Kinetic 2 | . . . . . 1 . . 1 Secondary . | . . . . . . . . . Self-Inflicted Damage 59 | . . . . . 59 . . . Shots 1 | . . . . . 1 . . . Rammed . | . . . . . . . . . Targets Rammed . | . . . . . . . . . Kicked . | . . . . . . . . . Crushed . | . . . . . . . . . Highest Temperature 280 | . 66 2 . . 280 235 24 175 Average Temperature 63 | . 31 1 . . 70 124 14 40 Received Heat Transfer 711 | . 117 270 36 . 279 . . 9 Siege Activations . | . . . . . . . . . Martial Activations . | . . . . . . . . . Shielding Activations . | . . . . . . . . . Robots Disrupted . | . . . . . . . . . Combat Hostiles . | . . . . . . . . . Robots Corrupted 8 | . . . . . 7 . . 1 Combat Hostiles 4 | . . . . . 3 . . 1 Parts Fried 12 | . . . . . 11 . . 1 Impact Corruptions 43 | . . . . . 40 . . 3 Robots Melted . | . . . . . . . . . Combat Hostiles . | . . . . . . . . . Parts Melted 1 | . . . . . . . . 1 Heat Transferred 718 | . 222 37 259 . 100 . . 100 Parts Sabotaged . | . . . . . . . . . Parts Stolen . | . . . . . . . . . Parts Stripped . | . . . . . . . . . Power Chain Reactions . | . . . . . . . . . Alert | -11 -10 -10 -10 -7 -5 -5 -5 -4 ------- Run | Yrd Mat Min Sub Scr Fac Upp Upp Fac Maximum Alert Level 2 | . . . . . 2 . . 1 Low Security (%) 82 | 100 100 100 . . 73 . . 81 Level 1 4 | . . . . . 3 . . 18 Level 2 12 | . . . . . 22 . . . Level 3 . | . . . . . . . . . Level 4 . | . . . . . . . . . Level 5 . | . . . . . . . . . High Security . | . . . . . . . . . Max Security . | . . . . . . . . . Peak Influence 476 | . 40 105 . . 476 . . 331 Initial 119 | . . . . . . . . 119 Average 114 | . 5 35 . . 151 . . 150 Influence Increases 1675 | . 65 256 20 . 800 . 90 444 Destroy 0b10 Robot/C 920 | . 40 220 20 . 340 . 80 220 Destroy 0b10 Robot/NC 60 | . . 5 . . 55 . . . Destroy Leader 170 | . 10 30 . . 90 . 10 30 Allied During Kill 1 | . . 1 . . . . . . Successful Hack 35 | . . . . . 14 . . 21 Disable Machine 195 | . 15 . . . 135 . . 45 Destroy Structure 234 | . . . . . 106 . . 128 Lose Combat Pursuer 60 | . . . . . 60 . . . Influence Decreases 1384 | . 65 256 20 . 356 295 49 343 Entered New Map 265 | . . . . . . 165 29 71 Time Decay 979 | . 65 196 20 . 286 130 20 262 Lost Part 120 | . . 40 . . 70 . . 10 Lost Ally 20 | . . 20 . . . . . . Squads Dispatched 16 | . 1 1 . . 13 . . 1 Investigation 8 | . 1 . . . 7 . . . Extermination 6 | . . . . . 5 . . 1 Reinforcement 1 | . . . . . 1 . . . Assault 1 | . . 1 . . . . . . Garrison . | . . . . . . . . . Intercept . | . . . . . . . . . Searches Triggered . | . . . . . . . . . Construction Impeded 1 | . . . . . 1 . . . Haulers Reinforced . | . . . . . . . . . Active Scanning Responses . | . . . . . . . . . Cargo Convoy Interrupts . | . . . . . . . . . Stealth | -11 -10 -10 -10 -7 -5 -5 -5 -4 --------- Run | Yrd Mat Min Sub Scr Fac Upp Upp Fac Distress Signals 3 | . 1 . . . 2 . . . Communications Jammed . | . . . . . . . . . Distress Signals . | . . . . . . . . . Times Spotted 58 | . 6 13 7 . 21 . 1 10 Peak Tracking Total 6 | . 4 6 2 . 6 . 2 5 Tactical Retreats 3 | . . . . . 3 . . . Traps | -11 -10 -10 -10 -7 -5 -5 -5 -4 ------- Run | Yrd Mat Min Sub Scr Fac Upp Upp Fac Traps Triggered 3 | . 1 . 1 . . . . 1 Indirectly . | . . . . . . . . . Trap Hack Attempts . | . . . . . . . . . Triggered . | . . . . . . . . . Disarmed . | . . . . . . . . . Reprogrammed . | . . . . . . . . . Reused . | . . . . . . . . . Traps Extracted . | . . . . . . . . . Installed . | . . . . . . . . . Triggered . | . . . . . . . . . Most Traps Carried 1 | . . . . 1 1 1 1 1 Machines | -11 -10 -10 -10 -7 -5 -5 -5 -4 ---------- Run | Yrd Mat Min Sub Scr Fac Upp Upp Fac Machines Disabled 13 | . 1 . . . 9 . . 3 Max in Single Turn 7 | . 1 . . . 7 . . 2 Machines Repaired . | . . . . . . . . . Machines Dismantled . | . . . . . . . . . Machines Sabotaged . | . . . . . . . . . Overloaded Fab Kills . | . . . . . . . . . Hacking | -11 -10 -10 -10 -7 -5 -5 -5 -4 --------- Run | Yrd Mat Min Sub Scr Fac Upp Upp Fac Machines Accessed 24 | . 3 . . 7 11 . . 3 Terminals 5 | . . . . . 3 . . 2 Fabricators 1 | . . . . . . . . 1 Repair Stations 1 | . 1 . . . . . . . Recycling Units 9 | . 2 . . . 7 . . . Scanalyzers . | . . . . . . . . . Garrison Access 1 | . . . . . 1 . . . Total Hacks 53 | . 6 . . 25 16 . . 6 Successful 39 | . 4 . . 25 7 . . 3 Failed 14 | . 2 . . . 9 . . 3 Catastrophic 7 | . 1 . . . 4 . . 2 Database Lockouts . | . . . . . . . . . Manual 19 | . . . . . 15 . . 4 Terminals 8 | . . . . . 4 . . 4 Fabricators 2 | . . . . . . . . 2 Repair Stations 1 | . 1 . . . . . . . Recycling Units 16 | . 5 . . . 11 . . . Scanalyzers . | . . . . . . . . . Garrison Access 1 | . . . . . 1 . . . Terminal Hacks 25 | . . . . 25 . . . . Record 24 | . . . . 24 . . . . Proto ID Catalog 1 | . . . . 1 . . . . Fabricator Hacks 1 | . . . . . . . . 1 Network Status 1 | . . . . . . . . 1 Repair Station Hacks . | . . . . . . . . . Recycling Unit Hacks 4 | . 4 . . . . . . . Process 1 | . 1 . . . . . . . Report Inventory 2 | . 2 . . . . . . . Retrieve Matter 1 | . 1 . . . . . . . Scanalyzer . | . . . . . . . . . Garrison Access Hacks . | . . . . . . . . . Unauthorized Hacks 9 | . . . . . 7 . . 2 Terminals 2 | . . . . . 1 . . 1 Botnet 2 | . . . . . 1 . . 1 Fabricators 1 | . . . . . . . . 1 Fabnet 1 | . . . . . . . . 1 Repair Stations . | . . . . . . . . . Recycling Units 6 | . . . . . 6 . . . Fedlink 6 | . . . . . 6 . . . Scanalyzers . | . . . . . . . . . Garrison Access . | . . . . . . . . . Data Cores Recovered 1 | . . . . . 1 . . . Used . | . . . . . . . . . Hacking Detections 13 | . 3 . . . 7 . . 3 Full Trace Events 1 | . . . . . 1 . . . Feedback Events . | . . . . . . . . . Feedback Blocked . | . . . . . . . . . Robot Schematics Acquired . | . . . . . . . . . Robots Built . | . . . . . . . . . Authchips . | . . . . . . . . . Time . | . . . . . . . . . Total Robot Build Rating . | . . . . . . . . . Part Schematics Acquired . | . . . . . . . . . Parts Built . | . . . . . . . . . Authchips . | . . . . . . . . . Time . | . . . . . . . . . Total Part Build Rating . | . . . . . . . . . Parts Repaired . | . . . . . . . . . Time . | . . . . . . . . . Parts Recycled . | . . . . . . . . . Recycled Matter 28 | . 28 . . . . . . . Retrieved Matter 28 | . 28 . . . . . . . Retrieved Components . | . . . . . . . . . Parts Scanalyzed . | . . . . . . . . . Part Schematics Acquired . | . . . . . . . . . Parts Damaged . | . . . . . . . . . Bothacking | -11 -10 -10 -10 -7 -5 -5 -5 -4 ------------ Run | Yrd Mat Min Sub Scr Fac Upp Upp Fac Used RIF Installer . | . . . . . . . . . Robots Hacked . | . . . . . . . . . Non-combat . | . . . . . . . . . Combat . | . . . . . . . . . Robot Hacks Applied . | . . . . . . . . . Relay Couplers Released . | . . . . . . . . . Fabnet Peak Effective % . | . . . . . . . . . Robots Rewired . | . . . . . . . . . Allies Hacked . | . . . . . . . . . Hacks Repelled . | . . . . . . . . . Allies | -11 -10 -10 -10 -7 -5 -5 -5 -4 -------- Run | Yrd Mat Min Sub Scr Fac Upp Upp Fac Total Allies 1 | . . 1 . . . . . . Largest Group 1 | . . 1 . . . . . . Highest-Rated Group 31 | . . 31 . . . . . . Highest-Rated Ally 31 | . . 31 . . . . . . Total Orders . | . . . . . . . . . Ally Attacks 2 | . . 2 . . . . . . Total Damage 42 | . . 42 . . . . . . Kills 1 | . . 1 . . . . . . Allies Corrupted . | . . . . . . . . . Allies Melted . | . . . . . . . . . Intel | -11 -10 -10 -10 -7 -5 -5 -5 -4 ------- Run | Yrd Mat Min Sub Scr Fac Upp Upp Fac Active Infowar (turns) 3241 | . . . 204 220 1915 276 54 572 Optics 2268 | . . . . . 1366 276 54 572 Sensors 2766 | . . . 204 3 1657 276 54 572 Structural 1602 | . . . . 217 813 . . 572 Robot Analysis Total . | . . . . . . . . . Derelict Logs Recovered 9 | . . 1 1 5 . 2 . . Drone Launches . | . . . . . . . . . Drone Recoveries . | . . . . . . . . . Exploration | -11 -10 -10 -10 -7 -5 -5 -5 -4 ------------- Run | Yrd Mat Min Sub Scr Fac Upp Upp Fac Turns Passed 7244 | 80 386 546 685 2696 1949 276 54 572 Spaces Moved 4228 | 43 151 371 463 1615 1011 196 33 345 Core 3 | 3 . . . . . . . . Treads 213 | 40 151 22 . . . . . . Legs . | . . . . . . . . . Wheels 4012 | . . 349 463 1615 1011 196 33 345 Hover . | . . . . . . . . . Flight . | . . . . . . . . . Fastest Speed 50 | 50 160 105 105 117 135 140 140 140 Average Speed 153 | 154 205 113 115 162 167 140 140 148 Slowest Speed 320 | 160 240 320 120 177 250 140 140 168 Overloaded Moves . | . . . . . . . . . Propulsion Burnouts . | . . . . . . . . . Robots Hopped . | . . . . . . . . . Potential Cave-ins . | . . . . . . . . . Cave-ins Triggered . | . . . . . . . . . Exploration Rate (%) 39 | 5 36 85 45 88 28 45 9 12 Regions Visited 8 Branch Regions 5 Pre-discovered Areas 4 | . . . . 2 1 1 . . Known Exits Taken 3 | . . . . . 1 1 1 . Unknown Exits Taken 5 | 1 1 1 1 1 . . . . Scrap Searched 6 | . . 1 . 3 . 2 . . Spaces Dug 30 | . . . . . 19 . . 11 Terrain Destroyed 165 | . . . 1 . 58 . 16 90 Melee 11 | . . . . . 9 . . 2 Projectile 9 | . . . 1 . 7 . . 1 AOE 145 | . . . . . 42 . 16 87 Terrain Rammed . | . . . . . . . . . Walls Destroyed . | . . . . . . . . . Machines Disabled . | . . . . . . . . . Actions | -11 -10 -10 -10 -7 -5 -5 -5 -4 --------- Run | Yrd Mat Min Sub Scr Fac Upp Upp Fac Total 4759 | 54 208 439 555 1693 1183 198 39 390 Wait 89 | 1 36 5 10 . 28 . 4 5 Move 4220 | 42 150 370 462 1614 1010 195 32 345 Hop . | . . . . . . . . . Pick Up 97 | 6 5 5 16 44 9 3 . 9 Fast Attach 26 | 5 4 3 5 1 8 . . . Attach 42 | . . 2 2 2 28 . 1 7 Detach 28 | . . 1 4 2 15 . . 6 Swap 17 | . 2 2 3 4 6 . . . Drop 51 | . 2 . 17 24 7 . . 1 Fire 173 | . 9 51 36 . 60 . 2 15 Melee 14 | . . . . . 12 . . 2 Ram . | . . . . . . . . . Kick . | . . . . . . . . . Crush . | . . . . . . . . . Escape Stasis . | . . . . . . . . . Rewire 2 | . . . . 2 . . . . Trap . | . . . . . . . . . Miscellaneous . | . . . . . . . . . Route ------- -11/Scrapyard -10/Materials (discovered 2 exits: [*Mat] / [*Min]) -10/Mines (discovered 4 exits: [*Mat x2] / [*Exi] / [*Sub]) -10/Subcaves (discovered 2 exits: [*Mat] / *Scr) -7/Scraptown -5/Factory (discovered 3 exits: Fac / *Upp x2) -5/Upper Caves -5/Upper Caves -4/Factory History --------- Turn | Location | Event 15 | -11/Scrapyard | Discovered new exit (range 16) 81 | -11/Scrapyard | Entered Materials 268 | -10/Materials | Discovered new exit (range 7) 306 | -10/Materials | Build established: Mutant 424 | -10/Materials | Discovered new exit (range 11) 467 | -10/Materials | Entered Mines 468 | -10/Mines | Met a Derelict testing a Signal Generator 477 | -10/Mines | Found Signal Generator 594 | -10/Mines | Met a Derelict bent on vengeance 622 | -10/Mines | Discovered new exit (range 8) 647 | -10/Mines | Core integrity fell below 50% 817 | -10/Mines | Learned Materials security intel 818 | -10/Mines | Discovered new exit (range 3) 830 | -10/Mines | Deemed a non-threat by the Exiles lab entrance 830 | -10/Mines | Discovered new exit (range 5) 1004 | -10/Mines | Discovered new exit (range 10) 1013 | -10/Mines | Entered Subcaves 1014 | -10/Subcaves | Approached by a straggling Scientist 1234 | -10/Subcaves | Discovered new exit (range 7) 1287 | -10/Subcaves | Core integrity fell below 20% 1689 | -10/Subcaves | Scientist uncovered a shortcut to Scraptown 1698 | -10/Subcaves | Entered Scraptown 1767 | -7/Scraptown | Learned location of Extension (-6) 1831 | -7/Scraptown | Visited TADAMA 1844 | -7/Scraptown | Visited Symbiants 1898 | -7/Scraptown | Scanned Subdweller tech in exchange for log data 1901 | -7/Scraptown | Learned Factory stockpile data 1902 | -7/Scraptown | Learned location of 1 exit from Factory 1904 | -7/Scraptown | Learned location of Quarantine (-2) 1905 | -7/Scraptown | Learned Factory garrison access intel 2216 | -7/Scraptown | Build established: Hauler-Mutant 2502 | -7/Scraptown | Visited Artisan Demo Area 2626 | -7/Scraptown | Visited Fellowship of the Rings 2674 | -7/Scraptown | Visited UFD Registry 2674 | -7/Scraptown | Registered with UFD as "Shortcircuit" 2713 | -7/Scraptown | Visited Chapter 10 2776 | -7/Scraptown | Visited Scrapoid Research Area 2831 | -7/Scraptown | Visited A0-MCA Data Center 2841 | -7/Scraptown | Given a B+ rating by A0-MCA 2848 | -7/Scraptown | Found A0-MCA's Component Scanner 3162 | -7/Scraptown | Visited Infowarlord's Domain 3174 | -7/Scraptown | Found Exp. Signal Interpreter 3193 | -7/Scraptown | Visited Curators Association 3257 | -7/Scraptown | Visited Scrap Suit Storage 3294 | -7/Scraptown | Visited Junk Cannon Lab 3308 | -7/Scraptown | Found Prototype Special Weapon 3312 | -7/Scraptown | Identified Junk Cannon 3424 | -7/Scraptown | Visited Science Guys 3612 | -7/Scraptown | Found Scrap Suit 3615 | -7/Scraptown | Found Scrap Suit 3625 | -7/Scraptown | Found Scrap Suit 3633 | -7/Scraptown | Found Scrap Suit 3644 | -7/Scraptown | Found Scrap Suit 3843 | -7/Scraptown | Visited Cyclists 3865 | -7/Scraptown | Entered Cyclist Reading Room 4109 | -7/Scraptown | Visited Shadow of the Wyrm 4291 | -7/Scraptown | Met Optimus 4291 | -7/Scraptown | Accepted into 0bPrime 4390 | -7/Scraptown | Discovered new exit (range 3) 4394 | -7/Scraptown | Entered Factory 4394 | -5/Factory | Evolved 10 slots: Power x1, Propulsion x2, Utility x7 4395 | -5/Factory | Identified exit to Factory 4397 | -5/Factory | Loaded intel: 4 garrison access locations 4480 | -5/Factory | Discovered new exit (range 13) 5153 | -5/Factory | Loaded intel: 8 recycling unit locations 5330 | -5/Factory | Learned location of Protoforge (-2) 5355 | -5/Factory | Build established: Hauler-Assassin 5554 | -5/Factory | Discovered new exit (range 12) 5577 | -5/Factory | Identified exit to Upper Caves 5763 | -5/Factory | System corruption reached 10% 5901 | -5/Factory | Lost 4 parts (2p2u) 6343 | -5/Factory | Entered Upper Caves 6374 | -5/Upper Caves | Identified exit to Upper Caves 6423 | -5/Upper Caves | Learned location of Armory (-3) 6619 | -5/Upper Caves | Entered another Upper Caves area 6652 | -5/Upper Caves | Discovered exit to Factory (range 7) 6673 | -5/Upper Caves | Entered Factory 6673 | -4/Factory | Evolved 2 slots: Propulsion x1, Utility x1 6999 | -4/Factory | Found Imp. Powered Armor 7002 | -4/Factory | Found Imp. Powered Armor 7004 | -4/Factory | Found Imp. Powered Armor 7007 | -4/Factory | Found Imp. Powered Armor 7010 | -4/Factory | Found Imp. Powered Armor 7012 | -4/Factory | Found Imp. Powered Armor 7015 | -4/Factory | Found Imp. Powered Armor 7017 | -4/Factory | Found Imp. Powered Armor 7245 | -4/Factory | Self-destructed Last Messages --------------- 07173_ K-01 Serf Wheel blasted off. 07173_ K-01 Serf knocked back. 07174_ K-01 Serf collects debris. 07175_ K-01 Serf cleans the Power Conduit. 07177_ Acquired 3 matter. 07178_ K-01 Serf collects debris. 07181_ K-01 Serf cleans the Power Conduit. 07182_ K-01 Serf collects debris. 07184_ K-01 Serf cleans the Power Conduit. 07185_ K-01 Serf collects debris. 07186_ ALERT: Cargo convoy en route, clear transfer corridor. 07188_ K-01 Serf collects debris. 07189_ System corrupted: Matter fused (-4). 07189_ K-01 Serf cleans the Power Conduit. 07195_ Acquired Hvy. Siege Treads. 07197_ K-01 Serf cleans the Power Conduit. 07213_ K-01 Serf cleans the Recycling Unit. 07220_ PTSFBEL7BZCHYOS3%7AIEKXVPIIRUYR#KICE